[Event "Early-Titled-Tuesday-Blitz-May-07-2024"]
[Site "Chess.com"]
[Date "2024.05.07"]
[Round "10"]
[White "OparinGrigoriy"]
[Black "PeshkaCh"]
[Result "1-0"]
[WhiteElo "2996"]
[BlackElo "2884"]
[TimeControl "180+1"]
[EndTime "10:02:15 PDT"]
[Termination "OparinGrigoriy won by checkmate"]

1. Nc3 {[%clk 0:02:29.4]} 1... Nf6 {[%clk 0:02:55.7]} 2. d4 {[%clk 0:02:29.9]}
2... d5 {[%clk 0:02:55.8]} 3. Bf4 {[%clk 0:02:30.3]} 3... c5 {[%clk 0:02:56.1]}
4. e3 {[%clk 0:02:30.6]} 4... a6 {[%clk 0:02:56.3]} 5. Nf3 {[%clk 0:02:29.9]}
5... Nc6 {[%clk 0:02:54.5]} 6. dxc5 {[%clk 0:02:29.5]} 6... e6 {[%clk
0:02:54.7]} 7. Na4 {[%clk 0:02:28]} 7... Bxc5 {[%clk 0:02:51.4]} 8. Nxc5 {[%clk
0:02:28.9]} 8... Qa5+ {[%clk 0:02:51.9]} 9. c3 {[%clk 0:02:29.6]} 9... Qxc5
{[%clk 0:02:52.6]} 10. Be2 {[%clk 0:02:29.5]} 10... Qe7 {[%clk 0:02:49]} 11. h3
{[%clk 0:02:28.9]} 11... e5 {[%clk 0:02:48.4]} 12. Bh2 {[%clk 0:02:28.7]} 12...
O-O {[%clk 0:02:48.7]} 13. O-O {[%clk 0:02:29.3]} 13... Rd8 {[%clk 0:02:46.1]}
14. Qa4 {[%clk 0:02:24]} 14... b5 {[%clk 0:02:43.4]} 15. Qh4 {[%clk 0:02:23.9]}
15... h6 {[%clk 0:02:41.8]} 16. Rad1 {[%clk 0:02:23.3]} 16... Bf5 {[%clk
0:02:36.9]} 17. a4 {[%clk 0:02:05.1]} 17... Bc2 {[%clk 0:02:17.9]} 18. axb5
{[%clk 0:01:59.4]} 18... Bxd1 {[%clk 0:02:18.1]} 19. Rxd1 {[%clk 0:02:00.3]}
19... axb5 {[%clk 0:02:18.6]} 20. Bxb5 {[%clk 0:02:01.2]} 20... Qb7 {[%clk
0:02:18.7]} 21. Bxc6 {[%clk 0:01:59.5]} 21... Qxc6 {[%clk 0:02:19.6]} 22. Bxe5
{[%clk 0:01:58.6]} 22... Ra2 {[%clk 0:02:03.2]} 23. Nd4 {[%clk 0:01:45.6]} 23...
Qb6 {[%clk 0:01:33.9]} 24. Nf5 {[%clk 0:01:45.4]} 24... Ra6 {[%clk 0:00:36.8]}
25. Rd4 {[%clk 0:01:07.4]} 25... Qe6 {[%clk 0:00:29.2]} 26. Bxf6 {[%clk
0:01:06.9]} 26... Qxf6 {[%clk 0:00:30.1]} 27. Ne7+ {[%clk 0:01:06.5]} 27... Kh8
{[%clk 0:00:26.4]} 28. Qxf6 {[%clk 0:01:05.8]} 28... Rxf6 {[%clk 0:00:27.3]} 29.
Nxd5 {[%clk 0:01:06.2]} 29... Ra6 {[%clk 0:00:27.6]} 30. b4 {[%clk 0:01:03.7]}
30... Ra1+ {[%clk 0:00:27.2]} 31. Kh2 {[%clk 0:01:04.1]} 31... Ra2 {[%clk
0:00:27.8]} 32. Kg3 {[%clk 0:01:02.9]} 32... Rd6 {[%clk 0:00:28.1]} 33. c4
{[%clk 0:00:59.8]} 33... Rg6+ {[%clk 0:00:16.6]} 34. Kf3 {[%clk 0:00:59.2]}
34... Rg5 {[%clk 0:00:17.2]} 35. g4 {[%clk 0:00:58.1]} 35... f5 {[%clk
0:00:16.3]} 36. Nf4 {[%clk 0:00:53.4]} 36... fxg4+ {[%clk 0:00:16.6]} 37. hxg4
{[%clk 0:00:54.3]} 37... Rb2 {[%clk 0:00:16.5]} 38. c5 {[%clk 0:00:54.2]} 38...
Kh7 {[%clk 0:00:15.4]} 39. Rc4 {[%clk 0:00:52.7]} 39... h5 {[%clk 0:00:12.8]}
40. gxh5 {[%clk 0:00:52]} 40... Rg1 {[%clk 0:00:11.9]} 41. c6 {[%clk 0:00:52.5]}
41... Rf1 {[%clk 0:00:12.5]} 42. Nd3 {[%clk 0:00:50.1]} 42... Rd2 {[%clk
0:00:13.1]} 43. c7 {[%clk 0:00:50.3]} 43... Rxd3 {[%clk 0:00:13.5]} 44. c8=Q
{[%clk 0:00:50.7]} 44... Rd5 {[%clk 0:00:13.2]} 45. Qg4 {[%clk 0:00:49.9]} 45...
Re5 {[%clk 0:00:12.2]} 46. Qg6+ {[%clk 0:00:50.3]} 46... Kh8 {[%clk 0:00:12.7]}
47. Rc8+ {[%clk 0:00:51]} 47... Re8 {[%clk 0:00:13.5]} 48. Rxe8# {[%clk
0:00:51.9]} 1-0

[Event "Early-Titled-Tuesday-Blitz-May-07-2024"]
[Site "Chess.com"]
[Date "2024.05.07"]
[Round "10"]
[White "shirovin"]
[Black "chess_sharparchitect"]
[Result "0-1"]
[WhiteElo "2077"]
[BlackElo "2261"]
[TimeControl "180+1"]
[EndTime "10:02:15 PDT"]
[Termination "chess_sharparchitect won on time"]

1. e4 {[%clk 0:03:00.9]} 1... c5 {[%clk 0:02:56.6]} 2. Nf3 {[%clk 0:03:00.2]}
2... d6 {[%clk 0:02:53.4]} 3. d4 {[%clk 0:03:00.6]} 3... cxd4 {[%clk 0:02:53.8]}
4. Nxd4 {[%clk 0:03:01.3]} 4... Nf6 {[%clk 0:02:54.4]} 5. Nc3 {[%clk 0:03:01.7]}
5... a6 {[%clk 0:02:54.9]} 6. Bg5 {[%clk 0:03:01]} 6... e6 {[%clk 0:02:55.1]} 7.
f4 {[%clk 0:03:00.2]} 7... Be7 {[%clk 0:02:55.2]} 8. Qf3 {[%clk 0:02:59.5]} 8...
Qc7 {[%clk 0:02:54.6]} 9. O-O-O {[%clk 0:02:58.3]} 9... Nbd7 {[%clk 0:02:54.6]}
10. g4 {[%clk 0:02:55.9]} 10... h6 {[%clk 0:02:50.4]} 11. Bxf6 {[%clk
0:02:52.5]} 11... Bxf6 {[%clk 0:02:46.4]} 12. h4 {[%clk 0:02:48.8]} 12... Nb6
{[%clk 0:02:41.3]} 13. g5 {[%clk 0:02:45.3]} 13... Be7 {[%clk 0:01:51.9]} 14.
Kb1 {[%clk 0:02:34]} 14... Bd7 {[%clk 0:01:43.3]} 15. g6 {[%clk 0:02:25.6]}
15... fxg6 {[%clk 0:01:10]} 16. Bh3 {[%clk 0:02:23.4]} 16... O-O-O {[%clk
0:01:03.7]} 17. Bxe6 {[%clk 0:02:18.7]} 17... Bf6 {[%clk 0:00:57]} 18. Bb3
{[%clk 0:01:42.7]} 18... Qc5 {[%clk 0:00:47.9]} 19. Qd3 {[%clk 0:01:30.6]} 19...
Rhe8 {[%clk 0:00:39.2]} 20. Rhg1 {[%clk 0:01:16.5]} 20... Kb8 {[%clk 0:00:31.6]}
21. Rxg6 {[%clk 0:01:14.9]} 21... Bc6 {[%clk 0:00:22.3]} 22. Nd5 {[%clk
0:01:05.4]} 22... Bxd5 {[%clk 0:00:20.7]} 23. Bxd5 {[%clk 0:00:54.5]} 23... Nxd5
{[%clk 0:00:20]} 24. exd5 {[%clk 0:00:54.6]} 24... Bxd4 {[%clk 0:00:20.1]} 25.
b4 {[%clk 0:00:19.3]} 25... Qxb4+ {[%clk 0:00:18.6]} 26. Kc1 {[%clk 0:00:19.4]}
26... Bb2+ {[%clk 0:00:17.5]} 27. Kb1 {[%clk 0:00:17.8]} 27... Bc3+ {[%clk
0:00:17.6]} 0-1

[Event "Early-Titled-Tuesday-Blitz-May-07-2024"]
[Site "Chess.com"]
[Date "2024.05.07"]
[Round "10"]
[White "xasid81"]
[Black "GrotBchess"]
[Result "0-1"]
[WhiteElo "2641"]
[BlackElo "2521"]
[TimeControl "180+1"]
[EndTime "10:02:20 PDT"]
[Termination "GrotBchess won on time"]

1. Nf3 {[%clk 0:03:00.9]} 1... Nf6 {[%clk 0:02:59.3]} 2. b3 {[%clk 0:03:00.9]}
2... e6 {[%clk 0:02:58.5]} 3. Bb2 {[%clk 0:03:00.8]} 3... d5 {[%clk 0:02:59]} 4.
g3 {[%clk 0:03:01.3]} 4... Be7 {[%clk 0:02:59.2]} 5. Bg2 {[%clk 0:03:01.8]} 5...
O-O {[%clk 0:02:59.4]} 6. O-O {[%clk 0:03:02.4]} 6... b6 {[%clk 0:02:59.9]} 7.
c4 {[%clk 0:03:02.8]} 7... Bb7 {[%clk 0:03:00.1]} 8. Ne5 {[%clk 0:03:03]} 8...
Nbd7 {[%clk 0:02:58.8]} 9. Nxd7 {[%clk 0:03:03.1]} 9... Qxd7 {[%clk 0:02:58.7]}
10. cxd5 {[%clk 0:03:03.6]} 10... Bxd5 {[%clk 0:02:57.9]} 11. Nc3 {[%clk
0:03:02.8]} 11... Bxg2 {[%clk 0:02:56.8]} 12. Kxg2 {[%clk 0:03:03.7]} 12... c5
{[%clk 0:02:56.8]} 13. d3 {[%clk 0:03:04]} 13... Rfd8 {[%clk 0:02:56.2]} 14. Qc2
{[%clk 0:03:04]} 14... Rac8 {[%clk 0:02:55.5]} 15. Rfd1 {[%clk 0:03:03]} 15...
Nd5 {[%clk 0:02:55.6]} 16. Nxd5 {[%clk 0:03:02.3]} 16... Qxd5+ {[%clk
0:02:56.5]} 17. Kg1 {[%clk 0:03:02.3]} 17... Bd6 {[%clk 0:02:51]} 18. Rac1
{[%clk 0:03:02.3]} 18... Be5 {[%clk 0:02:49]} 19. d4 {[%clk 0:03:01.9]} 19...
Bd6 {[%clk 0:02:30.2]} 20. dxc5 {[%clk 0:02:56.9]} 20... Qxc5 {[%clk 0:02:29.4]}
21. Qxc5 {[%clk 0:02:56.1]} 21... Bxc5 {[%clk 0:02:26.1]} 22. Rxd8+ {[%clk
0:02:53.2]} 22... Rxd8 {[%clk 0:02:26.1]} 23. Rc2 {[%clk 0:02:53.6]} 23... h5
{[%clk 0:02:22.1]} 24. Kg2 {[%clk 0:02:52.5]} 24... a5 {[%clk 0:02:21]} 25. Bc3
{[%clk 0:02:50.7]} 25... Rd1 {[%clk 0:02:18.3]} 26. h4 {[%clk 0:02:49.2]} 26...
Kf8 {[%clk 0:02:17.4]} 27. Bxa5 {[%clk 0:02:46.6]} 27... Bxf2 {[%clk 0:02:12.1]}
28. Bb4+ {[%clk 0:02:45]} 28... Bc5 {[%clk 0:02:12.1]} 29. Bxc5+ {[%clk
0:02:44.9]} 29... bxc5 {[%clk 0:02:12.6]} 30. Rxc5 {[%clk 0:02:45.1]} 30... Rd2
{[%clk 0:02:13.2]} 31. Ra5 {[%clk 0:02:42.6]} 31... Rxe2+ {[%clk 0:02:12.7]} 32.
Kf3 {[%clk 0:02:43.1]} 32... Rc2 {[%clk 0:02:12]} 33. Kf4 {[%clk 0:02:39.5]}
33... f6 {[%clk 0:02:07.9]} 34. Ra4 {[%clk 0:02:32.1]} 34... Kf7 {[%clk
0:02:03.5]} 35. b4 {[%clk 0:02:30.9]} 35... e5+ {[%clk 0:02:03.2]} 36. Kf3
{[%clk 0:02:30.7]} 36... f5 {[%clk 0:02:00.8]} 37. Ke3 {[%clk 0:02:20.8]} 37...
Rc3+ {[%clk 0:01:58.2]} 38. Kd2 {[%clk 0:02:20.8]} 38... Rxg3 {[%clk 0:01:57.3]}
39. b5 {[%clk 0:02:20.5]} 39... Ke6 {[%clk 0:01:48.7]} 40. b6 {[%clk 0:02:17.5]}
40... Kd6 {[%clk 0:01:47.9]} 41. Rc4 {[%clk 0:02:15.1]} 41... Rg2+ {[%clk
0:01:46.8]} 42. Kc1 {[%clk 0:02:14.3]} 42... Rg1+ {[%clk 0:01:39.6]} 43. Kb2
{[%clk 0:02:14.2]} 43... Rg2+ {[%clk 0:01:39]} 44. Ka3 {[%clk 0:02:10.9]} 44...
Rg1 {[%clk 0:01:39.1]} 45. Rb4 {[%clk 0:01:56.4]} 45... Rg3+ {[%clk 0:01:27]}
46. Ka4 {[%clk 0:01:52.1]} 46... Rg4 {[%clk 0:01:20.7]} 47. Rxg4 {[%clk
0:01:31.4]} 47... hxg4 {[%clk 0:01:16.4]} 48. Kb5 {[%clk 0:01:32.3]} 48... g3
{[%clk 0:01:07.4]} 49. Ka6 {[%clk 0:01:23.1]} 49... g2 {[%clk 0:01:06.4]} 50. b7
{[%clk 0:01:23]} 50... Kc7 {[%clk 0:01:06.4]} 0-1

[Event "Early-Titled-Tuesday-Blitz-May-07-2024"]
[Site "Chess.com"]
[Date "2024.05.07"]
[Round "10"]
[White "Ati1517"]
[Black "NastyaHn"]
[Result "1-0"]
[WhiteElo "2289"]
[BlackElo "2456"]
[TimeControl "180+1"]
[EndTime "10:02:20 PDT"]
[Termination "Ati1517 won on time"]

1. e4 {[%clk 0:03:00.9]} 1... e6 {[%clk 0:02:55.7]} 2. d4 {[%clk 0:02:40.8]}
2... d5 {[%clk 0:02:49.6]} 3. Nd2 {[%clk 0:02:40.7]} 3... c5 {[%clk 0:02:48.9]}
4. c3 {[%clk 0:02:36.3]} 4... Nc6 {[%clk 0:02:42.2]} 5. Ngf3 {[%clk 0:02:34.5]}
5... Nf6 {[%clk 0:02:35.8]} 6. e5 {[%clk 0:02:31.8]} 6... Nd7 {[%clk 0:02:35.5]}
7. Bd3 {[%clk 0:02:29.3]} 7... Qb6 {[%clk 0:02:23.9]} 8. O-O {[%clk 0:02:26.9]}
8... cxd4 {[%clk 0:02:23.1]} 9. cxd4 {[%clk 0:02:27.2]} 9... Nxd4 {[%clk
0:02:21.5]} 10. Nxd4 {[%clk 0:02:27.4]} 10... Qxd4 {[%clk 0:02:21.7]} 11. Nf3
{[%clk 0:02:27]} 11... Qb6 {[%clk 0:02:21.4]} 12. Qc2 {[%clk 0:02:25.8]} 12...
g6 {[%clk 0:02:11.8]} 13. Be3 {[%clk 0:02:19.9]} 13... Bc5 {[%clk 0:02:10]} 14.
Bh6 {[%clk 0:02:15.1]} 14... Bf8 {[%clk 0:01:57.5]} 15. Bxf8 {[%clk 0:02:07]}
15... Kxf8 {[%clk 0:01:53.9]} 16. Rac1 {[%clk 0:02:03.3]} 16... Kg7 {[%clk
0:01:53.4]} 17. h4 {[%clk 0:01:59]} 17... h5 {[%clk 0:01:51.9]} 18. Ng5 {[%clk
0:01:57.8]} 18... Nxe5 {[%clk 0:01:46.7]} 19. Rce1 {[%clk 0:01:57.6]} 19... Ng4
{[%clk 0:01:38.8]} 20. Qc3+ {[%clk 0:01:51.7]} 20... d4 {[%clk 0:01:37.5]} 21.
Qd2 {[%clk 0:01:49.5]} 21... Bd7 {[%clk 0:01:32.1]} 22. Qf4 {[%clk 0:01:48.5]}
22... Nf6 {[%clk 0:01:23.8]} 23. Re5 {[%clk 0:01:27.1]} 23... Rad8 {[%clk
0:01:05.9]} 24. Rfe1 {[%clk 0:01:23.9]} 24... Rhf8 {[%clk 0:01:02.7]} 25. Qg3
{[%clk 0:01:22.9]} 25... Ng4 {[%clk 0:00:47]} 26. R5e2 {[%clk 0:01:10.5]} 26...
Bb5 {[%clk 0:00:34.8]} 27. Nxe6+ {[%clk 0:00:51]} 27... Kg8 {[%clk 0:00:09.5]}
28. Nxf8 {[%clk 0:00:47.8]} 28... Bxd3 {[%clk 0:00:07.6]} 29. Qxd3 {[%clk
0:00:47.7]} 29... Rxf8 {[%clk 0:00:07.2]} 30. Re4 {[%clk 0:00:47.3]} 30... Qd6
{[%clk 0:00:03]} 31. g3 {[%clk 0:00:45.4]} 31... Rd8 {[%clk 0:00:02.4]} 32. Kg2
{[%clk 0:00:38]} 32... Kg7 {[%clk 0:00:01.3]} 33. Re7 {[%clk 0:00:29.4]} 1-0

[Event "Early-Titled-Tuesday-Blitz-May-07-2024"]
[Site "Chess.com"]
[Date "2024.05.07"]
[Round "10"]
[White "Cipy77"]
[Black "Sokoloco"]
[Result "1-0"]
[WhiteElo "2633"]
[BlackElo "2789"]
[TimeControl "180+1"]
[EndTime "10:02:22 PDT"]
[Termination "Cipy77 won by checkmate"]

1. Nf3 {[%clk 0:03:00.9]} 1... g6 {[%clk 0:02:59.5]} 2. g3 {[%clk 0:02:59.1]}
2... Bg7 {[%clk 0:02:59.7]} 3. Bg2 {[%clk 0:02:59.7]} 3... e5 {[%clk 0:02:52.5]}
4. d3 {[%clk 0:02:57]} 4... d5 {[%clk 0:02:52.5]} 5. O-O {[%clk 0:02:57.4]} 5...
Ne7 {[%clk 0:02:51.4]} 6. c4 {[%clk 0:02:57.1]} 6... c6 {[%clk 0:02:51.3]} 7.
Nc3 {[%clk 0:02:54.2]} 7... O-O {[%clk 0:02:48.8]} 8. Rb1 {[%clk 0:02:52.6]}
8... h6 {[%clk 0:02:25.5]} 9. e4 {[%clk 0:02:43.5]} 9... d4 {[%clk 0:02:01.3]}
10. Ne2 {[%clk 0:02:42.5]} 10... f5 {[%clk 0:02:02]} 11. Nd2 {[%clk 0:02:39.2]}
11... f4 {[%clk 0:01:55]} 12. f3 {[%clk 0:02:38.4]} 12... g5 {[%clk 0:01:49.6]}
13. b4 {[%clk 0:02:38.4]} 13... h5 {[%clk 0:01:36.6]} 14. b5 {[%clk 0:02:37.3]}
14... c5 {[%clk 0:01:31.5]} 15. Nb3 {[%clk 0:02:30.7]} 15... Qd6 {[%clk
0:01:24.5]} 16. a4 {[%clk 0:02:27.5]} 16... a6 {[%clk 0:01:21.7]} 17. b6 {[%clk
0:02:22.8]} 17... a5 {[%clk 0:01:07.6]} 18. Ba3 {[%clk 0:02:20.8]} 18... Na6
{[%clk 0:00:54.2]} 19. Nxc5 {[%clk 0:02:19.6]} 19... Nxc5 {[%clk 0:00:55.1]} 20.
Rb5 {[%clk 0:02:19.9]} 20... Nxe4 {[%clk 0:00:55.9]} 21. Bxd6 {[%clk 0:02:18.9]}
21... Nxd6 {[%clk 0:00:56.8]} 22. Rb1 {[%clk 0:02:15.7]} 22... Ndf5 {[%clk
0:00:49.7]} 23. Qd2 {[%clk 0:02:06.8]} 23... Ne3 {[%clk 0:00:49.1]} 24. Rf2
{[%clk 0:02:06.7]} 24... Nc6 {[%clk 0:00:41.1]} 25. Rb5 {[%clk 0:02:04.7]} 25...
Bd7 {[%clk 0:00:37.1]} 26. Nc1 {[%clk 0:01:58.1]} 26... Nb4 {[%clk 0:00:34.1]}
27. Rc5 {[%clk 0:01:55.8]} 27... Bxa4 {[%clk 0:00:30]} 28. Rxa5 {[%clk
0:01:47.8]} 28... Rxa5 {[%clk 0:00:27.7]} 29. Qxb4 {[%clk 0:01:48.1]} 29... Rfa8
{[%clk 0:00:22.4]} 30. Ra2 {[%clk 0:01:47.9]} 30... Bf8 {[%clk 0:00:17.3]} 31.
Qb2 {[%clk 0:01:43.7]} 31... Nd1 {[%clk 0:00:09]} 32. Qd2 {[%clk 0:01:34.2]}
32... Nc3 {[%clk 0:00:09.6]} 33. Rb2 {[%clk 0:01:32.5]} 33... Bc6 {[%clk
0:00:07.5]} 34. gxf4 {[%clk 0:01:30.8]} 34... gxf4 {[%clk 0:00:07]} 35. h3
{[%clk 0:01:21.9]} 35... Ba3 {[%clk 0:00:06.8]} 36. Rc2 {[%clk 0:01:19.2]} 36...
Ba4 {[%clk 0:00:06.7]} 37. Na2 {[%clk 0:01:09.9]} 37... Bxc2 {[%clk 0:00:05.9]}
38. Nxc3 {[%clk 0:01:05.4]} 38... dxc3 {[%clk 0:00:04.4]} 39. Qxc2 {[%clk
0:01:06]} 39... Bc5+ {[%clk 0:00:04]} 40. d4 {[%clk 0:01:06.3]} 40... Bxd4+
{[%clk 0:00:03.9]} 41. Kh2 {[%clk 0:01:07]} 41... Kg7 {[%clk 0:00:04.3]} 42. Qf5
{[%clk 0:01:06.3]} 42... Rf8 {[%clk 0:00:02.6]} 43. Qg5+ {[%clk 0:01:06.2]}
43... Kf7 {[%clk 0:00:02.4]} 44. h4 {[%clk 0:01:05]} 44... c2 {[%clk 0:00:02]}
45. Bh3 {[%clk 0:00:59.9]} 45... c1=Q {[%clk 0:00:01.4]} 46. Qf5+ {[%clk
0:01:00.4]} 46... Ke7 {[%clk 0:00:00.7]} 47. Qe6+ {[%clk 0:01:00.7]} 47... Kd8
{[%clk 0:00:01.2]} 48. Qd6+ {[%clk 0:01:01.1]} 48... Ke8 {[%clk 0:00:01.2]} 49.
Qd7# {[%clk 0:01:01.7]} 1-0

[Event "Early-Titled-Tuesday-Blitz-May-07-2024"]
[Site "Chess.com"]
[Date "2024.05.07"]
[Round "10"]
[White "Anton_Demchenko"]
[Black "Boundless_Strike"]
[Result "1-0"]
[WhiteElo "2922"]
[BlackElo "2690"]
[TimeControl "180+1"]
[EndTime "10:02:25 PDT"]
[Termination "Anton_Demchenko won on time"]

1. e4 {[%clk 0:02:59.8]} 1... d6 {[%clk 0:02:57.3]} 2. d4 {[%clk 0:03:00.4]}
2... Nf6 {[%clk 0:02:57.9]} 3. Nc3 {[%clk 0:03:00.5]} 3... c6 {[%clk 0:02:58.6]}
4. f4 {[%clk 0:03:00.6]} 4... Qa5 {[%clk 0:02:59.2]} 5. Bd3 {[%clk 0:02:54.2]}
5... e5 {[%clk 0:02:59]} 6. Nf3 {[%clk 0:02:52.5]} 6... exd4 {[%clk 0:02:58.2]}
7. Nxd4 {[%clk 0:02:52.8]} 7... Qb6 {[%clk 0:02:58.7]} 8. Nb3 {[%clk 0:02:45.5]}
8... a5 {[%clk 0:02:58.5]} 9. a4 {[%clk 0:02:43]} 9... Na6 {[%clk 0:02:45.8]}
10. Qe2 {[%clk 0:02:28.5]} 10... Bg4 {[%clk 0:02:44.3]} 11. Qf2 {[%clk
0:02:17.1]} 11... Qxf2+ {[%clk 0:02:43.3]} 12. Kxf2 {[%clk 0:02:18]} 12... Nb4
{[%clk 0:02:43.9]} 13. f5 {[%clk 0:02:11.5]} 13... d5 {[%clk 0:02:15.5]} 14.
exd5 {[%clk 0:02:12.1]} 14... Nxd3+ {[%clk 0:02:10.3]} 15. cxd3 {[%clk 0:02:13]}
15... Bxf5 {[%clk 0:02:04.1]} 16. Re1+ {[%clk 0:02:12]} 16... Kd7 {[%clk
0:02:00.8]} 17. dxc6+ {[%clk 0:02:03.1]} 17... bxc6 {[%clk 0:01:57.2]} 18. Bf4
{[%clk 0:01:51.2]} 18... Bb4 {[%clk 0:01:46.8]} 19. Red1 {[%clk 0:01:26.6]}
19... Rhe8 {[%clk 0:01:40.1]} 20. h3 {[%clk 0:01:18.3]} 20... Be6 {[%clk
0:01:21.2]} 21. Nd2 {[%clk 0:01:17.1]} 21... Nd5 {[%clk 0:01:19.6]} 22. Nxd5
{[%clk 0:01:09]} 22... Bxd5 {[%clk 0:01:20.5]} 23. Nc4 {[%clk 0:01:02.3]} 23...
Bc5+ {[%clk 0:00:38.2]} 24. Kf1 {[%clk 0:01:01.9]} 24... Bd4 {[%clk 0:00:23.2]}
25. Rac1 {[%clk 0:00:55.3]} 25... f6 {[%clk 0:00:16.1]} 26. Bg3 {[%clk
0:00:53.4]} 26... Re7 {[%clk 0:00:10.5]} 27. Rc2 {[%clk 0:00:50.2]} 27... Ke8
{[%clk 0:00:07.7]} 28. Nd6+ {[%clk 0:00:45.8]} 28... Kf8 {[%clk 0:00:07.5]} 29.
Nf5 {[%clk 0:00:46.7]} 29... Be5 {[%clk 0:00:02]} 30. Nxe7 {[%clk 0:00:45]}
30... Bb3 {[%clk 0:00:01.2]} 31. Rxc6 {[%clk 0:00:21.4]} 1-0

[Event "Early-Titled-Tuesday-Blitz-May-07-2024"]
[Site "Chess.com"]
[Date "2024.05.07"]
[Round "10"]
[White "FaustinoOro"]
[Black "HajiyevKanan"]
[Result "0-1"]
[WhiteElo "2844"]
[BlackElo "2596"]
[TimeControl "180+1"]
[EndTime "10:02:26 PDT"]
[Termination "HajiyevKanan won by resignation"]

1. e4 {[%clk 0:03:00.9]} 1... c6 {[%clk 0:02:59.7]} 2. Nf3 {[%clk 0:02:55.9]}
2... d5 {[%clk 0:03:00.6]} 3. Nc3 {[%clk 0:02:56.3]} 3... a6 {[%clk 0:03:01.1]}
4. d4 {[%clk 0:02:53.7]} 4... Bg4 {[%clk 0:03:01.1]} 5. Be2 {[%clk 0:02:53.5]}
5... e6 {[%clk 0:03:00.9]} 6. h3 {[%clk 0:02:53.2]} 6... Bh5 {[%clk 0:03:00.8]}
7. O-O {[%clk 0:02:53.1]} 7... Nf6 {[%clk 0:03:01.3]} 8. e5 {[%clk 0:02:44.4]}
8... Nfd7 {[%clk 0:03:01]} 9. Ne1 {[%clk 0:02:39.3]} 9... Bg6 {[%clk 0:03:00.5]}
10. Be3 {[%clk 0:02:25.7]} 10... c5 {[%clk 0:03:00.5]} 11. f4 {[%clk 0:02:25.8]}
11... cxd4 {[%clk 0:02:59.7]} 12. Bxd4 {[%clk 0:02:26.7]} 12... Nc6 {[%clk
0:03:00.2]} 13. Bf2 {[%clk 0:02:27]} 13... Bc5 {[%clk 0:02:49.3]} 14. Bxc5
{[%clk 0:02:10.8]} 14... Nxc5 {[%clk 0:02:50.2]} 15. Kh2 {[%clk 0:02:11.1]}
15... Qc7 {[%clk 0:02:49.7]} 16. Nd3 {[%clk 0:02:07.5]} 16... Ne4 {[%clk
0:02:49]} 17. Nxe4 {[%clk 0:01:43.3]} 17... dxe4 {[%clk 0:02:49]} 18. Nf2 {[%clk
0:01:43.5]} 18... Rd8 {[%clk 0:02:45.1]} 19. Qc1 {[%clk 0:01:43.4]} 19... Qb6
{[%clk 0:02:43]} 20. Nd1 {[%clk 0:01:20.7]} 20... Nd4 {[%clk 0:02:37.6]} 21. Re1
{[%clk 0:01:21.1]} 21... O-O {[%clk 0:02:23.7]} 22. Ne3 {[%clk 0:01:19.7]} 22...
Rc8 {[%clk 0:02:21]} 23. c3 {[%clk 0:01:18.6]} 23... Nf5 {[%clk 0:02:21.1]} 24.
Nc4 {[%clk 0:01:08.8]} 24... Qf2 {[%clk 0:02:17.2]} 25. Bf1 {[%clk 0:00:49]}
25... Rfd8 {[%clk 0:01:07.1]} 26. Rxe4 {[%clk 0:00:27.8]} 26... Nh4 {[%clk
0:00:58.1]} 27. Qe3 {[%clk 0:00:21.8]} 27... Qc2 {[%clk 0:00:46.5]} 28. Rd4
{[%clk 0:00:21.1]} 28... Rxd4 {[%clk 0:00:43.3]} 29. cxd4 {[%clk 0:00:22]} 29...
Rxc4 {[%clk 0:00:41.6]} 30. Qg3 {[%clk 0:00:12.5]} 30... Nf5 {[%clk 0:00:39.4]}
31. Qg5 {[%clk 0:00:10.7]} 31... Rc8 {[%clk 0:00:33.5]} 32. d5 {[%clk
0:00:05.1]} 32... Qxb2 {[%clk 0:00:33.6]} 33. Rd1 {[%clk 0:00:04.7]} 33... exd5
{[%clk 0:00:33.7]} 34. Rxd5 {[%clk 0:00:04.5]} 34... h6 {[%clk 0:00:32.2]} 35.
Rd8+ {[%clk 0:00:04.7]} 35... Rxd8 {[%clk 0:00:32.7]} 36. Qxd8+ {[%clk
0:00:05.6]} 36... Kh7 {[%clk 0:00:32.9]} 37. Qd7 {[%clk 0:00:05.5]} 37... Qb4
{[%clk 0:00:26]} 0-1